Cogmind - Beta 10 X2 --- EXPLORER MODE // 2020.07.18 @ 21:37:32 // Experiment/BattleRoyale Player: Minty Result: Destroyed by FierceCycle-20 with Matter Neutralizer Performance ------------- Evolutions (0) 0 Regions Visited (0) 0 Robots Destroyed (0) 0 Value Destroyed (0) 0 Prototype IDs (2) 40 Alien Tech Used (0) 0 Bonus (0) 0 TOTAL SCORE: 40 Bonus ------- None Cogmind --------- Core Integrity 0/250 Matter 300/300 Energy 430/430 System Corruption 1% Temperature Cool (74) Movement Treading (200) Ox1 Location -5/Wartown Parts ------- > --- POWER (2) -------- Light Neutrino Core Cooled Antimatter Reactor > --- PROPULSION (4) --- Spiked Medium Treads > --- UTILITY (6) ------ Cooling System Advanced Weight Redist. System Recoil Stabilizer Recoil Nullifier Matter Filter Improved Thermal Shield > --- WEAPON (3) ------- Gatling Laser Plasma Cannon Neutron Cannon > --- INVENTORY (4) ---- (None) Peak State ------------ > --- POWER ------------ Light Neutrino Core Cooled Antimatter Reactor > --- PROPULSION ------- Spiked Medium Treads Gravmag System > --- UTILITY ---------- Cooling System Advanced Weight Redist. System Recoil Stabilizer Recoil Nullifier Matter Filter Improved Thermal Shield > --- WEAPON ----------- Gatling Laser Plasma Cannon Neutron Cannon > --- INVENTORY -------- (None) [Rating: 63] Favorites ----------- Power Light Neutrino Core Power Core Light Neutrino Core Reactor Cooled Antimatter Reactor Propulsion Spiked Medium Treads Treads Spiked Medium Treads Hover Unit Gravmag System Utility Cooling System Device Cooling System Weapon Gatling Laser Energy Gun Gatling Laser Energy Cannon Plasma Cannon Build | -5 ------- Run | Tow Slots Evolved . | . Power . | . Propulsion . | . Utility . | . Weapon . | . Parts Attached . | . Power . | . Engine . | . Core . | . Reactor . | . Propulsion . | . Treads . | . Leg . | . Wheel . | . Hover . | . Flight . | . Utility . | . Device . | . Storage . | . Processor . | . Hackware . | . Protection . | . Artifact . | . Weapon . | . Energy Gun . | . Energy Cannon . | . Ballistic Gun . | . Ballistic Cannon . | . Launcher . | . Special Weapon . | . Impact Weapon . | . Slashing Weapon . | . Piercing Weapon . | . Special Melee Weapon . | . Unidentified Prototypes . | . Parts Lost . | . Power . | . Propulsion . | . Utility . | . Weapon . | . Highest Loss Streak . | . Average Slot Usage (%) 80 | 80 Core 6 | 6 Reactor 6 | 6 Treads 6 | 6 Device 40 | 40 Energy Gun 6 | 6 Energy Cannon 13 | 13 Naked Turns . | . Heaviest Build 55 | 55 Greatest Support 37 | 37 Greatest Overweight (x) 1 | 1 Average Overweight (x) 1 | 1 Largest Inventory Capacity 4 | 4 Average Capacity 4 | 4 Most Carried . | . Average Carried . | . Final Capacity 4 | 4 Final Carried . | . Class Distribution -------------------- 100% | Hacker-Gunner Dominant Class ---------------- Hacker-Gunner | -5/Wartown Resources | -5 ----------- Run | Tow Matter Collected . | . Remotely . | . Salvage Created . | . Parts . | . Haulers Intercepted . | . Recyclers Shooed . | . Parts Field Recycled . | . Retrieved Matter . | . Parts Self-Destructed . | . Prevented . | . Kills | -5 ------- Run | Tow Combat Hostiles Destroyed . | . Classes Destroyed . | . Best Kill Streak . | . Combat Bots Only . | . Max Kills in Single Turn . | . Gunslinging . | . Exploded . | . Melee . | . Uniques/NPCs Destroyed . | . Combat | -5 -------- Run | Tow Damage Taken 469 | 469 Core 260 | 260 Absorbed by Shields . | . Redirected to Core 4236 | 4236 Core Remaining (%) . | . Volleys Fired 7 | 7 Largest 3 | 3 Hottest 250 | 250 Shots Fired 17 | 17 Gun 5 | 5 Cannon 12 | 12 Launcher . | . Special . | . Kinetic . | . Thermal 17 | 17 Explosive . | . Electromagnetic . | . Robot Hit Streak 9 | 9 Robot Miss Streak 1 | 1 Penetration Max . | . Secondary Targets . | . Shots Hit Robots 8 | 8 Core Hits 2 | 2 Critical Hits . | . Critical Kills . | . Critical Parts Destroyed . | . Melee Attacks . | . Impact . | . Slashing . | . Piercing . | . Sneak Attacks . | . Combat Hostiles . | . Follow-up Attacks . | . Damage Inflicted 328 | 328 Guns 48 | 48 Cannons 149 | 149 Explosions 131 | 131 Melee . | . Ramming . | . Kinetic . | . Thermal 197 | 197 Explosive 131 | 131 Electromagnetic . | . Impact . | . Slashing . | . Piercing . | . Highest Corruption 1 | 1 Average Corruption 1 | 1 Corruption Purged . | . Overload Shots . | . Overflow Damage . | . Projectiles . | . Explosions . | . Melee . | . Knockbacks . | . Impact . | . Kinetic . | . Secondary . | . Self-Inflicted Damage . | . Shots . | . Rammed . | . Targets Rammed . | . Kicked . | . Crushed . | . Highest Temperature 338 | 338 Average Temperature 145 | 145 Received Heat Transfer 27 | 27 Effects 1 | 1 Shutdowns 1 | 1 Siege Activations . | . Robots Corrupted . | . Combat Hostiles . | . Parts Fried . | . Impact Corruptions . | . Robots Melted . | . Combat Hostiles . | . Parts Melted . | . Heat Transferred 96 | 96 Parts Sabotaged . | . Parts Stolen . | . Parts Stripped . | . Power Chain Reactions . | . Missiles Intercepted . | . Alert | -5 ------- Run | Tow Peak Influence . | . Average Influence . | . Maximum Alert Level . | . Low Security (%) . | . Level 1 . | . Level 2 . | . Level 3 . | . Level 4 . | . Level 5 . | . High Security . | . Max Security . | . Squads Dispatched . | . Investigation . | . Extermination . | . Reinforcement . | . Assault . | . Garrison . | . Intercept . | . Construction Impeded . | . Haulers Reinforced . | . Stealth | -5 --------- Run | Tow Distress Signals . | . Communications Jammed . | . Distress Signals . | . Times Spotted 2 | 2 Peak Tracking Total 2 | 2 Tactical Retreats . | . Traps | -5 ------- Run | Tow Traps Triggered . | . Indirectly . | . Trap Hack Attempts . | . Triggered . | . Disarmed . | . Reprogrammed . | . Reused . | . Traps Extracted . | . Installed . | . Triggered . | . Machines | -5 ---------- Run | Tow Machines Disabled 4 | 4 Max in Single Turn 2 | 2 Machines Sabotaged . | . Garrisons Compromised . | . Overloaded Fab Kills . | . Fab Network Shutdowns . | . Hacking | -5 --------- Run | Tow Machines Accessed . | . Terminals . | . Fabricators . | . Repair Stations . | . Recycling Units . | . Scanalyzers . | . Garrison Access . | . Total Hacks . | . Successful . | . Failed . | . Catastrophic . | . Database Lockouts . | . Manual . | . Terminals . | . Fabricators . | . Repair Stations . | . Recycling Units . | . Scanalyzers . | . Garrison Access . | . Terminal Hacks . | . Fabricator Hacks . | . Repair Station Hacks . | . Recycling Unit Hacks . | . Scanalyzer . | . Garrison Access Hacks . | . Unauthorized Hacks . | . Terminals . | . Fabricators . | . Repair Stations . | . Recycling Units . | . Scanalyzers . | . Garrison Access . | . Data Cores Recovered . | . Used . | . Hacking Detections . | . Full Trace Events . | . Feedback Events . | . Feedback Blocked . | . Robot Schematics Acquired . | . Robots Built . | . Matter . | . Time . | . Total Robot Build Rating . | . Part Schematics Acquired . | . Parts Built . | . Matter . | . Time . | . Total Part Build Rating . | . Parts Repaired . | . Time . | . Parts Recycled . | . Recycled Matter . | . Retrieved Matter . | . Retrieved Components . | . Parts Scanalyzed . | . Part Schematics Acquired . | . Parts Damaged . | . Bothacking | -5 ------------ Run | Tow Used RIF Installer . | . Robots Hacked . | . Non-combat . | . Combat . | . Robot Hacks Applied . | . Relay Couplers Released . | . Robots Rewired . | . Allies Hacked . | . Hacks Repelled . | . Allies | -5 -------- Run | Tow Total Allies . | . Largest Group . | . Highest-Rated Group . | . Highest-Rated Ally . | . Total Orders . | . Ally Attacks . | . Total Damage . | . Kills . | . Allies Corrupted . | . Allies Melted . | . Intel | -5 ------- Run | Tow Robot Analysis Total . | . Derelict Logs Recovered . | . Drone Launches . | . Drone Recoveries . | . Exploration | -5 ------------- Run | Tow Turns Passed 160 | 160 Spaces Moved 58 | 58 Core . | . Treads 58 | 58 Legs . | . Wheels . | . Hover . | . Flight . | . Fastest Speed 200 | 200 Average Speed 200 | 200 Slowest Speed 200 | 200 Overloaded Moves . | . Propulsion Burnouts . | . Robots Hopped . | . Cave-ins Triggered . | . Exploration Rate (%) 3 | 3 Regions Visited 1 Branch Regions 1 Pre-discovered Areas . | . Known Exits Taken . | . Unknown Exits Taken . | . Scrap Searched . | . Spaces Dug . | . Terrain Destroyed 31 | 31 Melee . | . Projectile 1 | 1 AOE 30 | 30 Actions | -5 --------- Run | Tow Total 88 | 88 Wait 21 | 21 Move 58 | 58 Hop . | . Pick Up . | . Fast Attach . | . Attach . | . Detach . | . Swap . | . Drop 2 | 2 Fire 7 | 7 Melee . | . Ram . | . Kick . | . Crush . | . Escape Stasis . | . Rewire . | . Trap . | . Miscellaneous . | . Route ------- -5/Wartown History --------- Turn | Location | Event 147 | -5/Wartown | Core integrity fell below 50% 154 | -5/Wartown | Core integrity fell below 20% 161 | -5/Wartown | Destroyed by FierceCycle-20 with Matter Neutralizer Last Messages --------------- Systems online... Loading variables... CORE=STABLE INTEGRATION=OK LOCATION=UNKNOWN GOAL=EXPLORE [SPECIAL MODE ACTIVATED: Experiment/BattleRoyale] Dropped Gravmag Array. 00002_ Dropped Gravmag System. 00103_ Neutrino Reactor explodes. 00103_ Door malfunctions. 00120_ The unstable cave ceiling collapses. 00139_ Nuclear Reactor explodes. 00145_ Power failure, Lgt. Neutrino Core shutdown. 00149_ Nuclear Reactor explodes. Map ----- +----------------------------------------------------+ | ?????????????????????????????????????????????????? | | ?????????????????????????????????????????????????? | | ?????????????????????????????????????????????????? | | ?????????????????????????????????????????????????? | | ?????????????????????????????????????????????????? | | ?????????????????????????????????????????????????? | | ?????????????????????????????????????????????????? | | ?????????????????????????????????????????????????? | | ?????????????????????????????????????????????????? | | ?????????????????????????????????????????????????? | | ???????????????????????? ??????????????????? | | ??????????????????????? ????????????????? | | ?????????????????????? ??????????????? | | ?????????????????????? ??????????????? | | ?????????????????????? #??????????????? | | ????????????????#?????? #?#????????????? | | ????????????????+ ????? @ ? #????????????? | | ????????????????# ????? ## #######??????? | | ????????????????# ?#### * ?????? | | ????????????????? # ?????? | | ?????????????????? # ?????? | | ???????????????????# ????? | | ???????????????????# ????? | | ???????????????????# # ???? | | ???????????????????# # ???? | | ???????????????????# @ ???? | | ???????????????????# ???? | | ???????????????????+ ???? | | ???????????????????# ???? | | ???????????????????# ????? | | ???????????????????####/ ????? | | ???????????????????# ?????? | | ???????????????????# ?????? | | #######????????????# # ?????? | | ############## # @ ??????? | | + # = ??????? | | # # ! ???????? | | ] # # ! ???????? | | / # # ?????????? | | # # ???????????? | | ######+########## ########## ??????????????? | | # ???????? ????????????????? | | """ """ """ """ # ??????????????????????????? | | """ """ """ """ # ????????????????????????? | | """ """ """ """ # ???????????????????????? | | # ???????????????????????? | | # ??????????????????????? | | # ??????????????????????? | | ############+#### ??????????????????????? | | * #??#########????????????????????????? | +----------------------------------------------------+ Best States ------------- Heat Dissipation 47 Energy Generation 37 Energy Capacity 430 Matter Stores 300 Matter Capacity 300 Sight Range 16 Terrain Scan Density 10 Additional Mass Support 9 Resistance: KI 35 Resistance: TH 60 Resistance: EX 35 Resistance: EM 35 Resistance: I 35 Resistance: S 35 Resistance: P 35 Evasion (%) 40 Recoil Reduction 9 Matter Filtering 30 Offensive Hacking 20 Item Schematics ----------------- None Robot Schematics ------------------ None Fabricated ------------ Nothing Alien Tech Used ----------------- None Achievements -------------- None Challenges ------------ None Game ------ Seed SegregatorXenonPlating Manual? 0 Play Time 00:03:22 Cumulative 211.3 hours Start 2020.07.18 @ 21:35:49 End 2020.07.18 @ 21:37:32 Sessions 1 Manual Loads 0 Difficulty Explorer Special Mode Experiment/BattleRoyale Game No. 118 Rogue 0 Adventurer 44 Explorer 74 Win Type - Total 4 Types 3/0/1/0/0/0/0 Lore% 53 Gallery% 79 Achievement% 58 Wizard Run 0 Options --------- ASCII 0 Keyboard 0 Movement Mouse Keybinds 0 Fullscreen 1 Font 18/TerminusBold Map View 76x50 Tactical HUD 1 Map Filters NONE Filters SATURATION(100) Steam 1 RUN: 43726cdd-b041-435a-92f6-c80f68157de8